Cogmind - Beta 15 @@@ ROGUE MODE // 2025.06.04 @ 14:23:23 Player: alice_fexa Result: Self-destructed Performance ------------- Evolutions (8) 4000 Regions Visited (20) 4000 Robots Destroyed (318) 1590 Value Destroyed (17591) 17591 Prototype IDs (111) 2220 Alien Tech Used (5) 1000 Bonus (10390) 10390 TOTAL SCORE: 40791 Bonus ------- Triggered High Security 500 High Alert Combat Kills 8183 Follower Combat Kills 52 Met Zhirov 300 Met Warlord at Base 500 MAIN.C Attacked Warlord 500 Warlord Defense Kills 100 Scanned by Researcher 500 Friendly Fire -245 Cogmind --------- Core Integrity 1450/1450 Matter 64/300 Energy 558/558 System Corruption 0% Temperature Cool (0) Movement Walking (72) Location -2/Research Parts ------- > --- POWER (3) -------- Concept Zero-point Core Point-Antimatter Core > --- PROPULSION (6) --- Armored-Fieldthrust Exoskeleton > --- UTILITY (10) ----- Armored Scrap Engine Concept Antigrav Storage Unit Spectral Analyzer Core Analyzer Experimental Kinecellerator Experimental Remote Shield > --- WEAPON (4) ------- Prc. Zero Strikerail Construct/C > --- INVENTORY (25) --- Antimatter Reactor Light Quantum Reactor Concept Zero-point Core Advanced Cooling System Concept Thermoelectric Network Concept Thermoelectric Network Concept Chromion Battery (800) Concept NT7 Matterbank (750) Concept NT7 Matterbank (355) Advanced Sensor Array Concept Weapon Articulator Faulty Experimental Kinecellerator Faulty Mini Quantum Capacitor Mini Quantum Capacitor Concept Cloak Mesh Layered Medium Armor Plating Makeshift Ablative Armor Makeshift Ablative Armor Experimental Focal Shield Concept Antimissile System Advanced Component Analysis Suite Crosscalibrator Concept Tiamat Rocket Array Faulty Concept Blasthammer Peak State ------------ > --- POWER ------------ Concept Zero-point Core Concept Zero-point Core Point-Antimatter Core > --- PROPULSION ------- Armored-Fieldthrust Exoskeleton > --- UTILITY ---------- Armored Scrap Engine Experimental Cooling System Concept Antigrav Storage Unit Spectral Analyzer Core Analyzer Mini Quantum Capacitor Experimental Remote Shield > --- WEAPON ----------- Prc. Zero Strikerail Construct/C Experimental Jetlance > --- INVENTORY -------- Concept Zero-point Core Advanced Cooling System Concept Thermoelectric Network Concept Thermoelectric Network Concept Chromion Battery Concept NT7 Matterbank Concept NT7 Matterbank Advanced Sensor Array Concept Weapon Articulator Mini Quantum Capacitor Concept Cloak Mesh Layered Medium Armor Plating Makeshift Ablative Armor Makeshift Ablative Armor Experimental Focal Shield Concept Antimissile System Advanced Component Analysis Suite Concept Matter Streamer Crosscalibrator Transdimensional Reconstructor Subatomic Replicator Vortex Rifle Concept XC Strikerail Concept Tiamat Rocket Array Concept Blasthammer [Rating: 221] Favorites ----------- Power Constructs Engine Light Ion Engine Power Core Constructs Reactor Particle Reactor Propulsion Light Treads Treads Light Treads Leg Constructs Wheel Armored Wheel Hover Unit Concept Gyrokinetic System Flight Unit Cooled Nuclear Pulse Thruster Utility Advanced Targeting Computer Device Armored Scrap Engine Storage High-capacity Storage Unit Processor Advanced Targeting Computer Hackware Advanced Hacking Suite Protection Hardened Medium Armor Plating Weapon Constructs Energy Gun Medium Laser Energy Cannon Improved EM Pulse Cannon Ballistic Gun Minigun Ballistic Cannon Constructs Launcher Heavy Shock Bomb Launcher Impact Weapon Heavy Flail Slashing Weapon Phasing Sabre Piercing Weapon Experimental Jetlance Build | -11 -10 -10 -8 -7 -7 -7 -5 -5 -5 -5 -4 -4 -4 -4 -4 -3 -3 -3 -3 -2 ------- Run | Yrd Mat Sub Mat Fac Sto Rec Fac Upp Upp War Pro Fac Upp Upp Zhi Pro Res Qua Frg Res Slots Evolved 16 | . . . 4 2 . . 4 . . . . 2 . . . . 2 . . 2 Power 2 | . . . . . . . 1 . . . . . . . . . 1 . . . Propulsion 4 | . . . 2 . . . 1 . . . . 1 . . . . . . . . Utility 8 | . . . 2 1 . . 2 . . . . 1 . . . . . . . 2 Weapon 2 | . . . . 1 . . . . . . . . . . . . 1 . . . Parts Attached 142 | 6 11 2 26 7 8 8 4 . 1 3 2 7 2 1 2 2 13 4 33 . Power 16 | 1 1 . 4 . 2 . 1 . . . . . . . . . 2 1 4 . Engine 8 | 1 1 . 4 . 2 . . . . . . . . . . . . . . . Core 3 | . . . . . . . 1 . . . . . . . . . . . 2 . Reactor 5 | . . . . . . . . . . . . . . . . . 2 1 2 . Propulsion 27 | 2 2 1 8 1 4 3 . . 1 . . . . . . . 1 . 4 . Treads 14 | 2 . 1 6 1 3 . . . 1 . . . . . . . . . . . Leg . | . . . . . . . . . . . . . . . . . . . . . Wheel 8 | . 2 . 2 . 1 3 . . . . . . . . . . . . . . Hover 2 | . . . . . . . . . . . . . . . . . . . 2 . Flight 3 | . . . . . . . . . . . . . . . . . 1 . 2 . Utility 65 | 1 5 . 9 3 1 2 1 . . 2 . 6 1 . 2 1 8 3 20 . Device 41 | . 3 . 5 2 . 2 1 . . 1 . 3 . . 2 1 4 3 14 . Storage 5 | 1 2 . . . . . . . . . . . . . . . 1 . 1 . Processor 13 | . . . 3 1 . . . . . . . 3 1 . . . 3 . 2 . Hackware 1 | . . . . . . . . . . . . . . . . . . . 1 . Protection 5 | . . . 1 . 1 . . . . 1 . . . . . . . . 2 . Artifact . | . . . . . . . . . . . . . . . . . . . . . Weapon 34 | 2 3 1 5 3 1 3 2 . . 1 2 1 1 1 . 1 2 . 5 . Energy Gun 10 | 2 3 . 1 . . . . . . 1 1 . . . . . 1 . 1 . Energy Cannon 2 | . . . . . . . 1 . . . . . 1 . . . . . . . Ballistic Gun 9 | . . . 3 2 . 2 . . . . 1 . . . . . 1 . . . Ballistic Cannon 4 | . . . 1 . 1 1 1 . . . . . . . . . . . . . Launcher 2 | . . . . . . . . . . . . . . . . 1 . . 1 . Special Weapon . | . . . . . . . . . . . . . . . . . . . . . Impact Weapon 3 | . . 1 . 1 . . . . . . . 1 . . . . . . . . Slashing Weapon 3 | . . . . . . . . . . . . . . 1 . . . . 2 . Piercing Weapon 1 | . . . . . . . . . . . . . . . . . . . 1 . Special Melee Weapon . | . . . . . . . . . . . . . . . . . . . . . Unidentified Prototypes 18 | . . . 1 . 2 1 . . . 1 1 . . . 2 . 3 2 5 . Corrupted Parts 1 | . . . . . . . . . . . . . . . . 1 . . . . System Corruption 12 | . . . . . . . . . . . . . . . . 12 . . . . Parts Lost 27 | . . 1 5 2 3 2 . . . . . . . . . . . . 14 . Power 3 | . . . . 1 . . . . . . . . . . . . . . 2 . Propulsion 10 | . . 1 3 1 2 1 . . . . . . . . . . . . 2 . Utility 9 | . . . . . 1 . . . . . . . . . . . . . 8 . Weapon 5 | . . . 2 . . 1 . . . . . . . . . . . . 2 . Highest Loss Streak 3 | . . 1 2 1 1 1 . . . . . . . . . . . . 3 . To Critical Strikes . | . . . . . . . . . . . . . . . . . . . . . Average Backups 20 | 1 12 19 19 19 19 19 19 20 20 19 19 19 19 20 20 20 22 23 23 . Power 1 | . 2 3 2 2 1 2 1 2 2 2 1 . . . . . . . 1 . Propulsion . | . 2 3 1 1 1 . . . . . . . . . . . . . . . Utility 9 | . 1 2 4 5 5 6 7 7 7 7 7 10 10 11 11 11 15 15 16 . Weapon 8 | . 6 11 11 10 11 10 10 11 11 10 10 9 9 9 8 8 5 4 3 . Tool/Special . | . . . . . . . . . . . . . . . . . . . . . Unused Backups 101 | . . . 20 5 9 3 4 . . 3 . 3 . . 2 . 19 3 15 15 Power 15 | . . . 4 1 2 1 1 . . . . 1 . . . . 1 . 1 3 Propulsion 6 | . . . 2 . . . . . . . . . . . . . 2 . 2 . Utility 45 | . . . 2 3 2 1 3 . . 2 . 1 . . 1 . 9 2 8 11 Weapon 34 | . . . 12 1 5 1 . . . 1 . 1 . . 1 . 7 1 3 1 Tool/Special 1 | . . . . . . . . . . . . . . . . . . . 1 . Average Slot Usage (%) 70 | . 99 100 95 97 99 80 63 58 61 60 58 57 57 57 57 57 59 60 58 . Engine 3 | . 14 14 9 6 7 6 4 . . . . . . . . . . . . . Core 2 | . . . . . . . 4 5 5 5 2 . . . . . . . 6 . Reactor 2 | . . . . . . . . . . . 2 5 5 5 5 5 8 8 3 . Treads 7 | . 21 27 32 29 25 8 . . 7 7 . . . . . . . . . . Wheel 1 | . 6 . . . 4 8 . . . . . . . . . . . . . . Flight 2 | . . . . . . 2 3 . . . . . . . . . 6 9 4 . Device 13 | . 13 14 10 7 7 7 16 17 17 17 16 14 10 10 10 10 13 13 15 . Storage 6 | . 14 14 9 7 7 6 5 5 5 5 5 5 5 5 5 5 4 4 4 . Processor 11 | . . . 7 15 15 15 11 11 11 11 11 15 15 15 15 15 14 14 10 . Protection 1 | . . . 6 7 7 3 . . . . . . 5 5 5 5 . . . . Energy Gun 2 | . 28 22 3 . . . . . . . . . . . . . . . . . Ballistic Gun 3 | . . . 13 14 21 11 . . . . . . . . . . . . . . Ballistic Cannon 3 | . . . 1 4 . 3 6 8 5 5 5 5 5 5 5 5 4 4 2 . Impact Weapon 1 | . . 5 . 1 1 2 2 1 . 4 4 4 1 . . . . . . . Peak Build Rating 221 | 6 10 10 27 37 42 55 89 91 91 97 111 115 119 119 121 121 151 155 221 . Average Rating 98 | 4 8 9 22 33 39 48 74 88 85 88 103 112 117 118 118 118 143 150 186 . On Entrance 81 | . 6 10 10 27 34 41 54 89 91 85 97 109 114 118 118 120 119 149 150 178 Naked Turns . | . . . . . . . . . . . . . . . . . . . . . Heaviest Build 152 | 12 49 49 65 68 70 71 73 77 76 89 96 97 101 102 104 103 151 151 152 . Greatest Support 197 | 40 40 40 86 80 80 76 86 86 92 152 181 181 181 181 181 183 183 155 197 . Greatest Overweight (x) 5 | 3 4 4 3 . 5 5 1 . 1 1 . . . . . . . . 1 . Average Overweight (x) . | . 1 1 . . 2 2 . . . . . . . . . . . . . . Largest Inventory Capacity 25 | 8 20 20 20 20 20 20 20 20 20 20 20 20 20 20 20 20 25 25 25 . Average Capacity 21 | 7 14 20 20 20 20 19 20 20 20 20 20 20 20 20 20 20 23 25 25 . Most Carried 25 | 3 20 20 20 20 20 20 20 20 20 20 20 20 20 20 20 20 25 25 25 . Average Carried 20 | 1 12 19 19 19 19 19 19 20 20 19 19 19 19 19 20 19 23 24 24 . Final Capacity 25 | 8 20 20 20 20 20 20 20 20 20 20 20 20 20 20 20 20 25 25 25 25 Final Carried 24 | 3 20 20 20 20 20 18 20 20 20 19 20 19 20 20 20 20 24 24 24 24 Scrap Engine Consumption 156 | . . . . . . 34 13 . 6 21 1 11 4 1 5 . 5 . 55 . Constructs Created 3 | . . . . . . 3 . . . . . . . . . . . . . . Constructs Modified 72 | . . . . . . 12 6 . 1 9 4 . . . 7 2 4 . 27 . Class Distribution -------------------- 69% | Construct 12% | Mutant 8% | Scavenger-Mutant 7% | Scavenger-Gunner Dominant Class ---------------- Mutant | -10/Materials Mutant | -10/Subcaves Scavenger-Mutant | -8/Materials Mutant | -7/Factory Scavenger-Gunner | -7/Storage Construct | -7/Recycling Construct | -5/Factory Construct | -5/Upper Caves Construct | -5/Upper Caves Construct | -5/Warlord Construct | -4/Proximity Caves Construct | -4/Factory Construct | -4/Upper Caves Construct | -4/Upper Caves Construct | -4/Zhirov Construct | -3/Proximity Caves Construct | -3/Research Construct | -3/Quarantine Construct | -3/Protoforge Construct | -2/Research Resources | -11 -10 -10 -8 -7 -7 -7 -5 -5 -5 -5 -4 -4 -4 -4 -4 -3 -3 -3 -3 -2 ----------- Run | Yrd Mat Sub Mat Fac Sto Rec Fac Upp Upp War Pro Fac Upp Upp Zhi Pro Res Qua Frg Res Matter Collected 17710 | 196 524 20 613 428 684 594 222 106 30 84 304 402 183 91 84 23 640 469 12013 . Remotely 3277 | . . . . . . . . . . . . . . . . . . . 3277 . Salvage Created 16173 | . 518 67 968 472 728 1037 271 181 318 24 346 548 187 337 207 19 762 725 8458 . Parts 658 | . 29 8 45 22 27 19 14 3 11 . 17 19 10 9 4 2 30 28 361 . Haulers Intercepted 11 | . 2 . 2 . 3 1 1 . . . . . . . . . 1 1 . . Recyclers Shooed 2 | . . . . . . . . . . . . 1 . . . . 1 . . . Parts Field Recycled . | . . . . . . . . . . . . . . . . . . . . . Retrieved Matter . | . . . . . . . . . . . . . . . . . . . . . Parts Self-Destructed 38 | . . 14 . . . . . 3 . . 15 . 1 2 2 1 . . . . Prevented 11 | . . . . . . . . . . . . . 6 4 . 1 . . . . Kills | -11 -10 -10 -8 -7 -7 -7 -5 -5 -5 -5 -4 -4 -4 -4 -4 -3 -3 -3 -3 -2 ------- Run | Yrd Mat Sub Mat Fac Sto Rec Fac Upp Upp War Pro Fac Upp Upp Zhi Pro Res Qua Frg Res Combat Hostiles Destroyed 250 | . 10 4 16 9 12 12 4 1 . 1 11 9 2 3 . 2 2 2 150 . Melee 8 | . . . . . . . . . . . . . . . . . . . 8 . Guns 60 | . 10 4 14 7 12 12 . . . . 1 . . . . . . . . . Cannons 149 | . . . . 2 . . 4 1 . 1 10 8 2 2 . . 2 2 115 . AOE 27 | . . . . . . . . . . . . . . . . 2 . . 25 . Classes Destroyed 27 | . 7 . 2 2 1 1 1 . 1 . 1 . 1 1 . . . . 9 . Worker 9 | . 1 . . . 1 1 . . . . . . . . . . 1 . 5 . Builder 7 | . . . . . 1 . . . . . . . . . . . . 1 5 . Hauler 11 | . 2 . 2 . 3 1 1 . . . . . . . . . 1 1 . . Recycler 6 | . . . . . . . . . . . . . . . . . 3 3 . . Carrier 3 | . . . . . . . . . . . . . . . . . . . 3 . Mechanic 5 | . 1 . 1 . . . . . . . . . . . . . . . 3 . Operator 6 | . 1 . . . . . . . . . . 1 . . . . 2 . 2 . Drone 8 | . . . . . . . . . . . 2 . . . . 2 . . 4 . Watcher 15 | . 3 . 1 1 1 . . . . . . 2 . . . . 4 3 . . Swarmer 17 | . 6 4 . . . 2 . . . . 4 . . 1 . . . . . . Saboteur 5 | . . . . . . . . . . . . . . . . . . . 5 . Grunt 82 | . 4 . 8 5 11 1 . . . 1 3 4 . 1 . . . . 44 . Brawler 8 | . . . . . . . . . . . . . . . . . . . 8 . Duelist 17 | . . . . 1 . . . . . . . . . . . . . . 16 . Protector 11 | . . . . . . . . . . . . . . . . . . . 11 . Researcher 4 | . . . . . . . . . . . . . . . . . . . 4 . Sentry 22 | . . . 6 1 . 2 . . . . . 2 . 1 . . . . 10 . Specialist 2 | . . . . 2 . . . . . . . . . . . . . . . . Hunter 20 | . . . 2 . 1 . 2 1 . . 2 2 2 . . . . . 8 . Programmer 26 | . . . . . . . 2 . . . . 1 . . . . 2 2 19 . Q-Series 1 | . . . . . . . . . . . . . . . . . . . 1 . Hotshot 4 | . . . . . . . . . . . . . . . . . . . 4 . Decapitator 11 | . . . . . . . . . . . . . . . . . . . 11 . Immortal 3 | . . . . . . . . . . . . . . . . . . . 3 . Investigator 1 | . . . . . . . . . . . . . . . . . . . 1 . Striker 2 | . . . . . . . . . . . . . . . . . . . 2 . Alpha 7 2 | . . . . . . . . . . . . . . . . . . . 2 . V-Series 2 | . . . . . . . . . . . . . . . . . . . 2 . Subdweller 7 | . . . . . . 7 . . . . . . . . . . . . . . Packrat 1 | . . . . . . . . . . . . . 1 . . . . . . . Samaritan 6 | . . . . . . . . . 6 . . . . . . . . . . . Savage 1 | . . . . . . . . . . . . . . 1 . . . . . . Best Kill Streak 24 | . 3 3 4 4 7 4 2 1 . 1 4 4 2 1 . 1 2 4 24 . Combat Bots Only 21 | . 3 3 4 4 4 4 2 1 . 1 4 4 2 1 . 1 2 2 21 . Max Kills in Single Turn 5 | . 1 1 1 1 1 1 1 1 1 1 2 1 1 1 . 1 1 1 5 . Gunslinging . | . . . . . . . . . . . . . . . . . . . . . Exploded 5 | . . . . . . . . . . . . . . . . 1 . . 5 . Melee 1 | . . . . . . . . . . . . . . . . . . . 1 . Uniques/NPCs Destroyed . | . . . . . . . . . . . . . . . . . . . . . Combat | -11 -10 -10 -8 -7 -7 -7 -5 -5 -5 -5 -4 -4 -4 -4 -4 -3 -3 -3 -3 -2 -------- Run | Yrd Mat Sub Mat Fac Sto Rec Fac Upp Upp War Pro Fac Upp Upp Zhi Pro Res Qua Frg Res Hostile Shots Fired 1199 | . 49 34 105 51 54 39 27 6 . 12 96 69 32 5 . . 16 11 593 . Missed 420 | . 12 11 18 18 17 14 7 1 . 4 40 26 10 2 . . 10 7 223 . Hits 779 | . 37 23 87 33 37 25 20 5 . 8 56 43 22 3 . . 6 4 370 . Melee 29 | . . . . . . . . . . . . . . . . . . . 29 . Projectile 750 | . 37 23 87 33 37 25 20 5 . 8 56 43 22 3 . . 6 4 341 . AOE 13 | . . . . . . 1 . . . 2 . . . . . . . . 10 . Critical Strikes 47 | . 2 1 1 2 2 2 . . . . 2 2 . . . . 1 . 32 . Part Disruptions 1 | . . . . . . . . . . . . . . . . . . 1 . . Damage Taken 15064 | . 353 220 1357 623 578 475 291 93 . 224 515 1000 391 72 . 6 183 70 8613 . Core 1336 | . 92 60 213 32 25 42 . . . 37 65 20 43 . . 6 22 24 655 . Absorbed by Shields 3623 | . . . . . . . . . . 127 485 . . . . . . . 3011 . Regen/Repaired (Parts) 4512 | . . . 235 . . . 85 . 47 220 172 . . 181 501 . 155 . 2916 . Core Remaining (%) 69 | 100 . 39 61 . . 85 . . . . 89 . . . . 94 . . 15 . Volleys Fired 773 | . 40 12 70 29 42 35 15 8 26 4 35 43 9 20 . 4 16 17 348 . Largest 3 | . 2 2 2 3 3 3 2 2 1 1 2 1 2 2 . 1 1 1 1 . Hottest 369 | . 115 115 115 83 78 93 171 171 69 102 135 102 183 183 . 102 153 153 369 . Shots Fired 1094 | . 80 24 140 81 126 93 24 11 26 4 41 43 13 21 . 4 16 16 331 . Gun 523 | . 80 24 137 61 126 86 . . . . 6 . . . . . . . 3 . Cannon 559 | . . . 3 20 . 7 24 11 26 4 35 43 13 21 . 1 16 16 319 . Launcher 12 | . . . . . . . . . . . . . . . . 3 . . 9 . Special . | . . . . . . . . . . . . . . . . . . . . . Kinetic 673 | . . . 90 81 126 93 20 8 . 4 41 43 4 8 . 1 16 16 122 . Thermal 191 | . 44 24 49 . . . . . . . . . . . . . . . 74 . Explosive 9 | . . . . . . . . . . . . . . . . . . . 9 . Electromagnetic 95 | . 36 . 1 . . . 4 3 26 . . . 9 13 . 3 . . . . Entropic 126 | . . . . . . . . . . . . . . . . . . . 126 . Robot Hit Streak 35 | . 9 2 18 18 14 15 16 3 14 1 9 14 7 7 . 5 8 4 35 . Robot Miss Streak 6 | . 6 4 2 4 6 3 3 1 1 3 3 1 3 1 . . 3 1 4 . Penetration Max 1 | . . . . . . 1 . . . . 1 . . . . . . . 1 . Secondary Targets 7 | . 1 2 2 . 2 . . . . . . . . . . . . . . . Max Gunslinging Chain 1 | . 1 1 1 . 1 . . . . . . . . . . . . . . . Capacitor 9 | . . . . . . . . . . . . . . . . . . . 9 . Shots Hit Robots 869 | . 47 10 113 57 97 76 17 6 22 1 24 31 8 10 3 2 24 17 304 . Core Hits 519 | . 25 5 39 27 64 29 8 2 9 1 13 14 5 6 1 2 11 8 250 . Critical Kills 8 | . . . 1 . 1 . . . . . . . . . . . . . 6 . Critical Parts Destroyed 10 | . . . 1 1 1 3 . . . . . . . . . . . . 4 . Critical Strikes 47 | . . 1 9 2 2 3 2 . 1 . . . . . . . . . 27 . Burn 7 | . . 1 6 . . . . . . . . . . . . . . . . . Meltdown 2 | . . . . . . . . . . . . . . . . . . . 2 . Destroy 16 | . . . 2 1 2 1 . . . . . . . . . . . . 10 . Blast 4 | . . . 1 1 . . 2 . . . . . . . . . . . . . Corrupt 1 | . . . . . . . . . 1 . . . . . . . . . . . Smash 2 | . . . . . . 2 . . . . . . . . . . . . . . Impale 15 | . . . . . . . . . . . . . . . . . . . 15 . Melee Attacks 246 | . . 12 1 6 6 18 3 5 . 6 . 16 1 . 3 . 52 33 84 . Impact 74 | . . 12 1 6 6 18 3 5 . 6 . 16 1 . . . . . . . Slashing 132 | . . . . . . . . . . . . . . . 3 . 52 33 44 . Piercing 40 | . . . . . . . . . . . . . . . . . . . 40 . Sneak Attacks 37 | . . . . . 1 2 . . . . . 1 1 . . . 6 7 19 . Combat Hostiles . | . . . . . . . . . . . . . . . . . . . . . Follow-up Attacks . | . . . . . . . . . . . . . . . . . . . . . Damage Inflicted 70198 | . 765 150 1788 1044 1819 2322 789 401 653 50 1571 2321 458 577 314 170 2032 1385 51589 . Guns 6383 | . 717 150 1764 795 1709 1149 . . . . 99 . . . . . . . . . Cannons 47840 | . . . 24 232 . . 741 151 653 50 1472 2035 337 577 . 60 994 572 39942 . Explosions 9140 | . 48 . . . . . 48 . . . . 190 . . . 110 48 . 8696 . Melee 6818 | . . . . 17 110 1173 . 250 . . . 96 121 . 314 . 990 813 2934 . Ramming 17 | . . . . . . . . . . . . . . . . . . . 17 . Kinetic 21393 | . . . 1184 1027 1709 1149 647 120 . 50 1571 2035 152 213 . 60 994 572 9910 . Thermal 11747 | . 485 150 592 . . . 48 . . . . 190 . . . . 48 . 10234 . Explosive 7002 | . . . . . . . . . . . . . . . . . . . 7002 . Electromagnetic 1729 | . 280 . 12 . . . 94 31 653 . . . 185 364 . 110 . . . . Impact 1767 | . . . . 17 110 1173 . 250 . . . 96 121 . . . . . . . Slashing 3276 | . . . . . . . . . . . . . . . 314 . 990 813 1159 . Piercing 1775 | . . . . . . . . . . . . . . . . . . . 1775 . Entropic 21492 | . . . . . . . . . . . . . . . . . . . 21492 . Highest Corruption 46 | . . . . 1 1 1 . . . . . 5 1 1 1 12 8 7 46 . Average Corruption 11 | . . . . 1 1 1 . . . . . 3 1 1 1 12 5 6 23 . Corruption Purged 11 | . . . . . . 1 . . . . . 5 . . 1 . 4 . . . Corruption Blocked . | . . . . . . . . . . . . . . . . . . . . . Effects 321 | . . . . 1 10 10 . . . . . 5 1 7 2 . 33 22 230 . Message Errors 75 | . . . . . 3 4 . . . . . 1 . 1 . . 7 4 55 . Matter Fused 83 | . . . . . 2 3 . . . . . 2 . 2 2 . 15 6 51 . Heat Flow Errors 29 | . . . . . 1 . . . . . . 1 . 1 . . 2 4 20 . Energy Discharges 36 | . . . . . 1 1 . . . . . . . 2 . . 2 3 27 . Parts Rejected 3 | . . . . . . . . . . . . . . 1 . . . . 2 . Parts Fused 4 | . . . . . . . . . . . . . . . . . 1 . 3 . Data Loss (minor) 36 | . . . . . 1 . . . . . . 1 1 . . . 4 4 25 . Data Loss (major) 9 | . . . . . 1 1 . . . . . . . . . . . . 7 . Misfires 3 | . . . . 1 . . . . . . . . . . . . . . 2 . Alerts 6 | . . . . . 1 1 . . . . . . . . . . 2 . 2 . Misdirections 17 | . . . . . . . . . . . . . . . . . . . 17 . Weapon Failures 20 | . . . . . . . . . . . . . . . . . . 1 19 . Overload Shots 1 | . . . . . . . . . . . . . . . . . . . 1 . Overflow Damage 10177 | . . . . 7 70 600 42 227 161 . 91 311 23 14 174 20 497 226 7714 . Projectiles 7647 | . . . . 7 . 72 42 . 161 . 91 225 23 14 . 20 248 66 6678 . Explosions 55 | . . . . . . . . . . . . . . . . . . . 55 . Melee 2475 | . . . . . 70 528 . 227 . . . 86 . . 174 . 249 160 981 . Knockbacks 73 | . . . . 2 1 9 . . . . 10 11 2 . . 1 3 2 32 . Impact 8 | . . . . . 1 7 . . . . . . . . . . . . . . Kinetic 59 | . . . . 2 . . . . . . 9 10 1 . . 1 3 2 31 . Secondary 6 | . . . . . . 2 . . . . 1 1 1 . . . . . 1 . Self-Inflicted Damage 1384 | . 36 . . . . . 38 . . . . 177 . . . 6 42 . 1085 . Shots 35 | . 1 . . . . . 1 . . . . 2 . . . 1 1 . 29 . Rammed . | . . . . . . . . . . . . . . . . . . . . . Targets Rammed 1 | . . . . . . . . . . . . . . . . . . . 1 . Kicked 1 | . . . . . . . . . . . . . . . . . . . 1 . Crushed . | . . . . . . . . . . . . . . . . . . . . . Highest Temperature 277 | . 198 . 36 36 165 . 72 48 . 24 37 230 180 200 . 32 216 267 277 . Average Temperature 59 | . 53 . 9 12 21 . 25 24 . 18 18 79 85 70 . 24 53 75 72 . Received Heat Transfer 2373 | . 66 6 495 210 315 45 . . . 28 63 202 . . . . . . 943 . Effects 1 | . . . . . . . . . . . . . . . . . . . 1 . Energy Bleed 1 | . . . . . . . . . . . . . . . . . . . 1 . Siege Activations . | . . . . . . . . . . . . . . . . . . . . . Martial Activations . | . . . . . . . . . . . . . . . . . . . . . Shielding Activations . | . . . . . . . . . . . . . . . . . . . . . Robots Disrupted . | . . . . . . . . . . . . . . . . . . . . . Combat Hostiles . | . . . . . . . . . . . . . . . . . . . . . Robots Corrupted 11 | . . . . . 1 6 . . 1 . . 1 . 2 . . . . . . Combat Hostiles 6 | . . . . . . 4 . . . . . 1 . 1 . . . . . . Parts Fried 18 | . 1 . . . 2 2 . . 10 . . 1 . 2 . . . . . . Impact Corruptions 33 | . . . . . 3 20 . 7 . . . 3 . . . . . . . . Robots Melted 4 | . . . 2 . . . . . . . . . . . . . . . 2 . Combat Hostiles 4 | . . . 2 . . . . . . . . . . . . . . . 2 . Parts Melted 11 | . 3 . 4 . . 2 . . . . . . . . . . . . 2 . Heat Transferred 5227 | . 1162 444 2035 . . . . . . . . 200 . . . . 50 . 1336 . Parts Sabotaged . | . . . . . . . . . . . . . . . . . . . . . Parts Stolen . | . . . . . . . . . . . . . . . . . . . . . Parts Stripped . | . . . . . . . . . . . . . . . . . . . . . Power Chain Reactions 11 | . 1 . . . . . 1 . . . . 1 . . . . 1 . 7 . Alert | -11 -10 -10 -8 -7 -7 -7 -5 -5 -5 -5 -4 -4 -4 -4 -4 -3 -3 -3 -3 -2 ------- Run | Yrd Mat Sub Mat Fac Sto Rec Fac Upp Upp War Pro Fac Upp Upp Zhi Pro Res Qua Frg Res Maximum Alert Level 5 | . . . . . . . 1 . . . . 2 . . . . 1 . 5 . Low Security (%) 70 | 100 100 . 100 100 100 100 72 . . . . . . . . . 85 100 27 . Level 1 9 | . . . . . . . 27 . . . . 46 . . . . 14 . 10 . Level 2 5 | . . . . . . . . . . . . 53 . . . . . . 5 . Level 3 1 | . . . . . . . . . . . . . . . . . . . 6 . Level 4 6 | . . . . . . . . . . . . . . . . . . . 24 . Level 5 3 | . . . . . . . . . . . . . . . . . . . 13 . High Security 2 | . . . . . . . . . . . . . . . . . . . 10 . Max Security . | . . . . . . . . . . . . . . . . . . . . . Peak Influence 3625 | . 85 . 110 72 157 65 350 . . . . 483 . . . . 300 80 3625 . Initial 2033 | . . . . 18 18 30 350 . . . . 483 . . . . 300 7 1 2033 Average 343 | . 20 . 44 30 65 7 129 . . . . 390 . . . . 89 29 1055 . Influence Increases 9127 | . 376 110 580 222 339 312 485 35 . 46 229 860 50 95 15 10 598 367 4398 . Destroy 0b10 Robot/C 4660 | . 200 80 320 180 240 100 80 20 . 40 180 180 40 60 . . 40 40 2860 . Destroy 0b10 Robot/NC 465 | . 40 . 20 5 30 50 5 5 . . 10 15 . 5 15 10 55 40 160 . Destroy Leader 770 | . 50 . 106 32 48 . 22 10 . . 30 54 10 . . . 20 18 370 . Allied During Kill 17 | . . . . . . 1 . . . 6 9 1 . . . . . . . . Successful Hack 316 | . 23 . 84 . . 47 . . . . . 13 . . . . 30 78 41 . Select Force Hacks 90 | . . . . . . 90 . . . . . . . . . . . . . . Disable Machine 525 | . 15 . 30 . 15 15 . . . . . 45 . . . . 15 90 300 . Destroy Structure 524 | . 3 . 5 5 6 9 28 . . . . 102 . . . . 78 56 232 . Advance Influence 1100 | . . . . . . . 350 . . . . 450 . . . . 300 . . . Partial Spotted 165 | . 15 . . . . . . . . . . . . . . . 30 30 90 . Lose Combat Pursuer 495 | . 30 30 15 . . . . . . . . . . 30 . . 30 15 345 . Influence Decreases 7094 | . 376 110 538 223 303 389 485 29 6 46 175 515 410 134 15 10 584 378 786 1582 Entered New Map 1864 | . . . . 24 23 47 . . 2 . . 21 148 8 . . . 7 2 1582 Time Decay 4864 | . 340 100 488 169 270 322 465 29 4 29 175 474 262 126 15 10 584 358 644 . Lost Part 230 | . . 10 50 20 10 . . . . . . . . . . . . . 140 . Lost Ally 87 | . . . . 10 . 20 20 . . 17 . 20 . . . . . . . . Purge Threat 49 | . 36 . . . . . . . . . . . . . . . . 13 . . Squads Dispatched 68 | . 1 . 1 3 3 . 3 . . . . 6 . . . . 10 5 36 . Investigation 5 | . 1 . . . . . . . . . . . . . . . 1 1 2 . Extermination 22 | . . . . . 1 . 2 . . . . 2 . . . . 7 4 6 . Reinforcement 15 | . . . 1 3 2 . 1 . . . . 3 . . . . 2 . 3 . Assault 26 | . . . . . . . . . . . . 1 . . . . . . 25 . Garrison . | . . . . . . . . . . . . . . . . . . . . . Intercept . | . . . . . . . . . . . . . . . . . . . . . Searches Triggered . | . . . . . . . . . . . . . . . . . . . . . Construction Impeded . | . . . . . . . . . . . . . . . . . . . . . Haulers Reinforced 3 | . . . . . 2 . . . . . . . . . . . 1 . . . Active Scanning Responses . | . . . . . . . . . . . . . . . . . . . . . Cargo Convoy Interrupts 1 | . . . . . . . . . . . . . . . . . 1 . . . Stealth | -11 -10 -10 -8 -7 -7 -7 -5 -5 -5 -5 -4 -4 -4 -4 -4 -3 -3 -3 -3 -2 --------- Run | Yrd Mat Sub Mat Fac Sto Rec Fac Upp Upp War Pro Fac Upp Upp Zhi Pro Res Qua Frg Res Distress Signals 4 | . 1 . 1 . . . . . . . 1 . . . . . . . 1 . Communications Jammed 2 | . . . . . . . . . . . . 2 . . . . . . . . Distress Signals 2 | . . . . . . . . . . . . 2 . . . . . . . . Times Spotted 401 | . 21 8 27 13 15 12 12 1 . 27 13 15 5 3 . 2 15 7 205 . Peak Tracking Total 20 | . 6 5 4 4 4 2 6 1 . 7 4 4 3 2 . 1 2 2 20 . Tactical Retreats 23 | . 2 1 1 . . 1 . . . . . . . 2 . . 2 1 13 . Traps | -11 -10 -10 -8 -7 -7 -7 -5 -5 -5 -5 -4 -4 -4 -4 -4 -3 -3 -3 -3 -2 ------- Run | Yrd Mat Sub Mat Fac Sto Rec Fac Upp Upp War Pro Fac Upp Upp Zhi Pro Res Qua Frg Res Traps Triggered 19 | . 1 . . 1 . . . . . . . 1 . . . . 5 . 11 . Indirectly . | . . . . . . . . . . . . . . . . . . . . . Trap Hack Attempts . | . . . . . . . . . . . . . . . . . . . . . Triggered . | . . . . . . . . . . . . . . . . . . . . . Disarmed . | . . . . . . . . . . . . . . . . . . . . . Reprogrammed . | . . . . . . . . . . . . . . . . . . . . . Reused . | . . . . . . . . . . . . . . . . . . . . . Traps Extracted . | . . . . . . . . . . . . . . . . . . . . . Installed . | . . . . . . . . . . . . . . . . . . . . . Triggered . | . . . . . . . . . . . . . . . . . . . . . Machines | -11 -10 -10 -8 -7 -7 -7 -5 -5 -5 -5 -4 -4 -4 -4 -4 -3 -3 -3 -3 -2 ---------- Run | Yrd Mat Sub Mat Fac Sto Rec Fac Upp Upp War Pro Fac Upp Upp Zhi Pro Res Qua Frg Res Machines Disabled 37 | . 1 . 2 . 1 1 . . . . . 3 . . . . 1 6 22 . Max in Single Turn 2 | . 1 . 1 . 1 1 . . . . . 1 . . . . 1 1 2 . Garrison Access 2 | . . . . . . . . . . . . . . . . . 1 . 1 . Machines Repaired . | . . . . . . . . . . . . . . . . . . . . . Machines Dismantled . | . . . . . . . . . . . . . . . . . . . . . Machines Sabotaged . | . . . . . . . . . . . . . . . . . . . . . Overloaded Fab Kills . | . . . . . . . . . . . . . . . . . . . . . Hacking | -11 -10 -10 -8 -7 -7 -7 -5 -5 -5 -5 -4 -4 -4 -4 -4 -3 -3 -3 -3 -2 --------- Run | Yrd Mat Sub Mat Fac Sto Rec Fac Upp Upp War Pro Fac Upp Upp Zhi Pro Res Qua Frg Res Machines Accessed 85 | . 9 1 7 . 2 10 1 2 . 4 . 6 . 2 4 . 13 14 10 . Terminals 49 | . 7 . 6 . 1 4 1 . . . . 2 . . . . 8 11 9 . Fabricators 3 | . . . . . . . . . . . . 1 . . . . 2 . . . Repair Stations 2 | . . . 1 . 1 . . . . . . . . . . . . . . . Recycling Units 11 | . 2 . . . . 5 . . . . . 2 . . . . 2 . . . Scanalyzers 2 | . . . . . . . . . . . . . . . . . . 2 . . Garrison Access 4 | . . . . . . . . . . . . 1 . . . . 1 1 1 . Total Hacks 209 | . 29 4 22 . 3 28 1 5 . 4 . 17 . 8 17 . 24 22 25 . Successful 119 | . 15 4 15 . . 15 . 5 . 4 . 8 . 8 17 . 10 8 10 . Failed 90 | . 14 . 7 . 3 13 1 . . . . 9 . . . . 14 14 15 . Catastrophic 20 | . 2 . 2 . . 2 1 . . . . 1 . . . . 6 4 2 . Database Lockouts . | . . . . . . . . . . . . . . . . . . . . . Manual 93 | . 18 . 13 . 1 16 . . . . . 8 . . . . 16 11 10 . Terminals 121 | . 25 . 18 . 1 10 1 . . . . 7 . . . . 18 17 24 . Fabricators 5 | . . . . . . . . . . . . 2 . . . . 3 . . . Repair Stations 6 | . . . 4 . 2 . . . . . . . . . . . . . . . Recycling Units 29 | . 4 . . . . 16 . . . . . 7 . . . . 2 . . . Scanalyzers 3 | . . . . . . . . . . . . . . . . . . 3 . . Garrison Access 5 | . . . . . . . . . . . . 1 . . . . 1 2 1 . Terminal Hacks 69 | . 7 4 4 . . 2 . 5 . 4 . 1 . 8 17 . 5 5 7 . Record 24 | . . 4 . . . . . 4 . 3 . . . 7 5 . . . 1 . Part Schematic 4 | . . . . . . . . . . . . . . . 4 . . . . . Robot Analysis 6 | . 2 . . . . . . . . . . . . . 4 . . . . . Prototype ID Bank 5 | . 1 . . . . . . . . . . . . . 4 . . . . . Open Door 4 | . . . . . . . . 1 . 1 . . . 1 . . 1 . . . Branch Access Points 1 | . . . 1 . . . . . . . . . . . . . . . . . Terminal Index 1 | . . . . . . . . . . . . 1 . . . . . . . . Recycling Unit Index 1 | . . . . . . . . . . . . . . . . . 1 . . . Alert Level 6 | . 1 . 1 . . . . . . . . . . . . . 2 . 2 . Unreport Threat 2 | . 1 . . . . . . . . . . . . . . . . 1 . . Locate Traps 7 | . 2 . 1 . . . . . . . . . . . . . . 3 1 . Zone Layout 5 | . . . 1 . . . . . . . . . . . . . 1 1 2 . Proto ID Catalog 1 | . . . . . . . . . . . . . . . . . . . 1 . Release Object 2 | . . . . . . 2 . . . . . . . . . . . . . . Fabricator Hacks 2 | . . . . . . . . . . . . 1 . . . . 1 . . . Network Status 2 | . . . . . . . . . . . . 1 . . . . 1 . . . Repair Station Hacks 4 | . . . 4 . . . . . . . . . . . . . . . . . Scan Component 2 | . . . 2 . . . . . . . . . . . . . . . . . Repair 2 | . . . 2 . . . . . . . . . . . . . . . . . Recycling Unit Hacks 9 | . 1 . . . . 5 . . . . . 2 . . . . 1 . . . Retrieve Components 9 | . 1 . . . . 5 . . . . . 2 . . . . 1 . . . Scanalyzer 1 | . . . . . . . . . . . . . . . . . . 1 . . Insert Component 1 | . . . . . . . . . . . . . . . . . . 1 . . Garrison Access Hacks 2 | . . . . . . . . . . . . . . . . . 1 . 1 . Seal Access 2 | . . . . . . . . . . . . . . . . . 1 . 1 . Unauthorized Hacks 32 | . 7 . 7 . . 8 . . . . . 4 . . . . 2 2 2 . Terminals 25 | . 7 . 7 . . 5 . . . . . 1 . . . . 1 2 2 . Assimilate 2 | . . . 1 . . . . . . . . . . . . . . . 1 . Botnet 10 | . 2 . 1 . . 2 . . . . . 1 . . . . 1 2 1 . Skim 13 | . 5 . 5 . . 3 . . . . . . . . . . . . . . Fabricators 2 | . . . . . . . . . . . . 1 . . . . 1 . . . Fabnet 1 | . . . . . . . . . . . . . . . . . 1 . . . Haulers 1 | . . . . . . . . . . . . 1 . . . . . . . . Repair Stations . | . . . . . . . . . . . . . . . . . . . . . Recycling Units 5 | . . . . . . 3 . . . . . 2 . . . . . . . . Monitor 1 | . . . . . . . . . . . . 1 . . . . . . . . Recyclers 1 | . . . . . . . . . . . . 1 . . . . . . . . Tunnel 3 | . . . . . . 3 . . . . . . . . . . . . . . Scanalyzers . | . . . . . . . . . . . . . . . . . . . . . Garrison Access . | . . . . . . . . . . . . . . . . . . . . . Data Cores Recovered 2 | . 1 . . . . . . . . . . . . . . . 1 . . . Used . | . . . . . . . . . . . . . . . . . . . . . Hacking Detections 61 | . 9 . 7 . 3 7 1 . . . . 5 . . . . 10 12 7 . Full Trace Events 7 | . . . . . . 4 . . . . . . . . . . 1 1 1 . Feedback Events 1 | . . . . . . . . . . . . . . . . . . 1 . . Corruption 1 | . . . . . . . . . . . . . . . . . . 1 . . Feedback Blocked . | . . . . . . . . . . . . . . . . . . . . . Robot Schematics Acquired 2 | . . . . . . . . . . . . . . . . . . . 2 . Robots Built . | . . . . . . . . . . . . . . . . . . . . . Authchips . | . . . . . . . . . . . . . . . . . . . . . Time . | . . . . . . . . . . . . . . . . . . . . . Total Robot Build Rating . | . . . . . . . . . . . . . . . . . . . . . Part Schematics Acquired 10 | . . . . . . . . . . . . . . . 4 . . . 6 . Parts Built . | . . . . . . . . . . . . . . . . . . . . . Authchips . | . . . . . . . . . . . . . . . . . . . . . Time . | . . . . . . . . . . . . . . . . . . . . . Total Part Build Rating . | . . . . . . . . . . . . . . . . . . . . . Parts Repaired 2 | . . . 2 . . . . . . . . . . . . . . . . . Time 64 | . . . 64 . . . . . . . . . . . . . . . . . Parts Recycled . | . . . . . . . . . . . . . . . . . . . . . Recycled Matter . | . . . . . . . . . . . . . . . . . . . . . Retrieved Matter . | . . . . . . . . . . . . . . . . . . . . . Retrieved Components 29 | . 10 . . . . 6 . . . . . 4 . . . . 9 . . . Parts Scanalyzed . | . . . . . . . . . . . . . . . . . . . . . Part Schematics Acquired . | . . . . . . . . . . . . . . . . . . . . . Parts Damaged . | . . . . . . . . . . . . . . . . . . . . . Bothacking | -11 -10 -10 -8 -7 -7 -7 -5 -5 -5 -5 -4 -4 -4 -4 -4 -3 -3 -3 -3 -2 ------------ Run | Yrd Mat Sub Mat Fac Sto Rec Fac Upp Upp War Pro Fac Upp Upp Zhi Pro Res Qua Frg Res Used RIF Installer . | . . . . . . . . . . . . . . . . . . . . . Robots Hacked . | . . . . . . . . . . . . . . . . . . . . . Non-combat . | . . . . . . . . . . . . . . . . . . . . . Combat . | . . . . . . . . . . . . . . . . . . . . . Robot Hacks Applied . | . . . . . . . . . . . . . . . . . . . . . Relay Couplers Released 2 | . . . . . . . . . . . . . . . . . . . 2 . Machine Destruction 2 | . . . . . . . . . . . . . . . . . . . 2 . Fabnet Peak Effective % 3 | . . . . . . . . . . . . . . . . . . . . 3 Robots Rewired 7 | . . . . . . 2 . . . 5 . . . . . . . . . . Allies Hacked . | . . . . . . . . . . . . . . . . . . . . . Hacks Repelled . | . . . . . . . . . . . . . . . . . . . . . Allies | -11 -10 -10 -8 -7 -7 -7 -5 -5 -5 -5 -4 -4 -4 -4 -4 -3 -3 -3 -3 -2 -------- Run | Yrd Mat Sub Mat Fac Sto Rec Fac Upp Upp War Pro Fac Upp Upp Zhi Pro Res Qua Frg Res Total Allies 8 | . . . 1 . . 2 . . . 5 . . . . . . . . . . Largest Group 5 | . . . 1 1 . 2 1 . . 5 2 2 . . . . . . . . Highest-Rated Group 259 | . . . 10 10 . 52 32 . . 259 128 128 . . . . . . . . Highest-Rated Ally 64 | . . . 10 10 . 32 32 . . 64 64 64 . . . . . . . . Total Orders 6 | . . . . . . . 2 . . 4 . . . . . . . . . . STAY 4 | . . . . . . . 1 . . 3 . . . . . . . . . . FOLLOW 2 | . . . . . . . 1 . . 1 . . . . . . . . . . Ally Attacks 15 | . . . . . . 3 2 . . 10 . . . . . . . . . . Total Damage 583 | . . . . . . 97 44 . . 442 . . . . . . . . . . Kills 1 | . . . . . . . . . . 1 . . . . . . . . . . Allies Corrupted . | . . . . . . . . . . . . . . . . . . . . . Allies Melted 2 | . . . . . . . . . . 2 . . . . . . . . . . Intel | -11 -10 -10 -8 -7 -7 -7 -5 -5 -5 -5 -4 -4 -4 -4 -4 -3 -3 -3 -3 -2 ------- Run | Yrd Mat Sub Mat Fac Sto Rec Fac Upp Upp War Pro Fac Upp Upp Zhi Pro Res Qua Frg Res Active Infowar (turns) 15517 | . 334 . . 327 53 . 1001 523 831 1387 464 1201 560 585 382 562 1857 907 4543 . Optics 10597 | . . . . . . . . . . . . 1201 560 585 382 562 1857 907 4543 . Sensors 11212 | . . . . 327 53 . 1001 523 831 1387 464 1058 534 526 368 558 1839 852 891 . Terrain 97 | . 97 . . . . . . . . . . . . . . . . . . . Seismic 237 | . 237 . . . . . . . . . . . . . . . . . . . Jamming 4048 | . . . . . . . . . . . . 784 . . . . 673 793 1798 . Robot Analysis Total 6 | . 2 . . . . . . . . . . . . . 4 . . . . . Derelict Logs Recovered 6 | . . 1 . . . . . . 2 . . . 2 1 . . . . . . Drone Launches . | . . . . . . . . . . . . . . . . . . . . . Drone Recoveries . | . . . . . . . . . . . . . . . . . . . . . Exploration | -11 -10 -10 -8 -7 -7 -7 -5 -5 -5 -5 -4 -4 -4 -4 -4 -3 -3 -3 -3 -2 ------------- Run | Yrd Mat Sub Mat Fac Sto Rec Fac Upp Upp War Pro Fac Upp Upp Zhi Pro Res Qua Frg Res Turns Passed 22855 | 64 1674 569 1708 469 722 2556 1181 540 832 1390 553 1201 560 585 382 562 1857 907 4543 . Spaces Moved 16279 | 37 678 202 717 208 300 1181 598 517 589 775 350 642 383 422 176 404 2704 1483 3913 . Core 10 | 10 . . . . . . . . . . . . . . . . . . . . Treads 3029 | 27 443 199 653 208 122 86 . . 505 731 . . . . . . . . 55 . Legs 2356 | . . . . . . 39 94 517 84 44 53 . . . 72 404 293 . 756 . Wheels 1398 | . 235 3 64 . 178 918 . . . . . . . . . . . . . . Hover 2196 | . . . . . . . 97 . . . 297 642 383 422 104 . . . 251 . Flight 7290 | . . . . . . 138 407 . . . . . . . . . 2411 1483 2851 . Fastest Speed 24 | 50 140 140 140 160 160 105 87 87 87 87 111 111 111 111 100 59 29 29 24 . Average Speed 85 | 143 153 238 159 160 162 143 126 87 129 150 122 111 111 111 106 99 32 29 39 . Slowest Speed 290 | 200 160 240 240 160 165 290 136 87 162 245 189 111 111 111 111 100 59 29 165 . Overloaded Moves . | . . . . . . . . . . . . . . . . . . . . . Propulsion Burnouts . | . . . . . . . . . . . . . . . . . . . . . Robots Hopped 14 | . . . . . . . . . . . . . . . . . 7 3 4 . Potential Cave-ins . | . . . . . . . . . . . . . . . . . . . . . Cave-ins Triggered . | . . . . . . . . . . . . . . . . . . . . . Teleports 5 | . . . . . . . . . . . . . . . . . . 4 1 . Exploration Rate (%) 52 | 5 96 21 60 7 31 99 8 66 67 85 59 17 68 59 61 55 50 95 44 . Regions Visited 20 Branch Regions 13 Pre-discovered Areas 12 | . 1 1 2 . . 3 . . . 1 . . . 1 3 . . . . . Known Exits Taken 17 | . . 1 . 1 1 1 1 1 1 1 1 1 1 1 1 1 1 1 1 . Unknown Exits Taken 3 | 1 1 . 1 . . . . . . . . . . . . . . . . . Scrap Searched 9 | . . . . . . . . 1 1 . 2 . 2 3 . . . . . . Spaces Dug 104 | . . 1 . 4 4 5 3 3 . 2 . 14 . 2 . . 27 20 19 . Terrain Destroyed 290 | . 3 1 2 4 4 8 13 8 . 2 12 59 . 5 . . 39 34 96 . Melee 93 | . . 1 . 4 4 3 2 3 . 2 . 13 . . . . 27 15 19 . Projectile 122 | . . . 2 . . 5 4 5 . . 12 12 . 5 . . 10 19 48 . AOE 75 | . 3 . . . . . 7 . . . . 34 . . . . 2 . 29 . Terrain Rammed . | . . . . . . . . . . . . . . . . . . . . . Walls Destroyed . | . . . . . . . . . . . . . . . . . . . . . Machines Disabled . | . . . . . . . . . . . . . . . . . . . . . Actions | -11 -10 -10 -8 -7 -7 -7 -5 -5 -5 -5 -4 -4 -4 -4 -4 -3 -3 -3 -3 -2 --------- Run | Yrd Mat Sub Mat Fac Sto Rec Fac Upp Upp War Pro Fac Upp Upp Zhi Pro Res Qua Frg Res Total 23911 | 45 1237 246 1168 285 455 1953 995 586 632 989 429 1052 501 516 366 557 3575 1885 6439 . Wait 5725 | . 475 12 269 16 58 641 352 52 16 128 30 313 100 69 171 144 703 308 1868 . Move 16232 | 36 677 201 716 207 299 1180 597 516 588 774 349 641 382 421 175 403 2689 1476 3905 . Hop 14 | . . . . . . . . . . . . . . . . . 7 3 4 . Pick Up 226 | 3 22 3 32 9 16 21 8 . . 5 3 7 3 1 2 . 29 10 52 . Fast Attach 101 | 6 3 . 17 1 3 5 4 . 1 4 1 . . 1 6 1 10 8 30 . Attach 50 | . 1 1 7 3 4 2 2 . . . 1 2 . . . 1 3 1 22 . Detach 7 | . . . . . . 2 . . . . . 1 . . 1 1 . . 2 . Swap 150 | . 7 3 11 7 10 7 6 5 1 2 7 21 4 3 2 2 18 17 17 . Drop 250 | . 12 2 45 7 17 18 8 . . 12 3 8 2 1 6 1 32 12 64 . Fire 773 | . 40 12 70 29 42 35 15 8 26 4 35 43 9 20 . 4 16 17 348 . Melee 246 | . . 12 1 6 6 18 3 5 . 6 . 16 1 . 3 . 52 33 84 . Ram . | . . . . . . . . . . . . . . . . . . . . . Kick . | . . . . . . . . . . . . . . . . . . . . . Crush . | . . . . . . . . . . . . . . . . . . . . . Escape Stasis 59 | . . . . . . . . . . . . . . . . . 16 . 43 . Rewire 78 | . . . . . . 24 . . . 54 . . . . . . . . . . Trap . | . . . . . . . . . . . . . . . . . . . . . Miscellaneous . | . . . . . . . . . . . . . . . . . . . . . Route ------- -11/Scrapyard -10/Materials (discovered 6 exits: *Mat x3 / *Min x2 / *Sub) -10/Subcaves (discovered 3 exits: *Mat x2 / Rec) -8/Materials -7/Factory (discovered 2 exits: *Sto / *Low) -7/Storage -7/Recycling -5/Factory -5/Upper Caves -5/Upper Caves (discovered 2 exits: *Fac / *War) -5/Warlord -4/Proximity Caves -4/Factory (discovered 3 exits: *Res x2 / *Upp) -4/Upper Caves -4/Upper Caves -4/Zhirov -3/Proximity Caves -3/Research (discovered 5 exits: *Res x2 / Arm / *Qua x2) -3/Quarantine (discovered 3 exits: *Res / [*Sec] / *Frg) -3/Protoforge -2/Research History --------- Turn | Location | Event 22 | -11/Scrapyard | Discovered new exit (range 16) 65 | -11/Scrapyard | Entered Materials 65 | -10/Materials | Discovered new exit (range 7) 263 | -10/Materials | Discovered new exit (range 8) 308 | -10/Materials | Build established: Mutant 352 | -10/Materials | Discovered new exit (range 16) 624 | -10/Materials | Discovered new exit (range 15) 1039 | -10/Materials | Discovered new exit (range 15) 1322 | -10/Materials | Discovered new exit (range 6) 1482 | -10/Materials | Learned location of 1 exit from Recycling 1527 | -10/Materials | Learned Storage machine intel 1588 | -10/Materials | Identified exit to Materials 1588 | -10/Materials | Identified exit to Mines 1623 | -10/Materials | Learned Materials stockpile data 1739 | -10/Materials | Entered Subcaves 1740 | -10/Subcaves | Identified exit to Materials 2030 | -10/Subcaves | Shifting Twisted Machinery released Sub. Monowheel 2081 | -10/Subcaves | Shifting Twisted Machinery released Sub. Machine Gun 2161 | -10/Subcaves | Visited Clippyterm 2168 | -10/Subcaves | Identified exit to Recycling 2168 | -10/Subcaves | Learned location of Extension (-6) 2299 | -10/Subcaves | Core integrity fell below 50% 2308 | -10/Subcaves | Entered Materials 2308 | -8/Materials | Evolved 4 slots: Propulsion x2, Utility x2 2634 | -8/Materials | Build established: Scavenger-Mutant 3423 | -8/Materials | Discovered new exit (range 16) 3520 | -8/Materials | Repaired Lgt. Treads 3558 | -8/Materials | Repaired Hrd. Medium Armor Plating 3879 | -8/Materials | Learned Storage trap positions 3911 | -8/Materials | Learned Storage machine intel 3935 | -8/Materials | Learned Storage stockpile data 3948 | -8/Materials | Learned location of Lower Caves (-7) 3952 | -8/Materials | Learned location of Zion (-6) 3953 | -8/Materials | Learned Factory terminal intel 3954 | -8/Materials | Learned 4 Lower Caves zone layouts 3955 | -8/Materials | Learned location of 1 exit from Storage 3959 | -8/Materials | Learned location of 1 exit from Extension 3971 | -8/Materials | Learned Storage trap positions 3992 | -8/Materials | Learned 2 Storage zone layouts 4016 | -8/Materials | Entered Factory 4016 | -7/Factory | Accompanied by 1 ally 4016 | -7/Factory | Evolved 2 slots: Utility x1, Weapon x1 4017 | -7/Factory | Identified exit to Storage 4018 | -7/Factory | Loaded intel: 26 terminal locations 4233 | -7/Factory | Discovered new exit (range 14) 4257 | -7/Factory | Identified exit to Lower Caves 4485 | -7/Factory | Entered Storage 4488 | -7/Storage | Loaded intel: 24 trap records 4490 | -7/Storage | Loaded intel: 36 machine locations 4928 | -7/Storage | Build established: Scavenger-Gunner 5204 | -7/Storage | Used back door to open Recycling access 5207 | -7/Storage | Entered Recycling 5208 | -7/Recycling | Identified exit to Factory 6295 | -7/Recycling | Entered Scraplab 6306 | -7/Recycling | Found Prototype Device 6306 | -7/Recycling | Identified Scrap Engine 6946 | -7/Recycling | Build established: Construct 7763 | -7/Recycling | Entered Factory 7763 | -5/Factory | Accompanied by 1 ally 7763 | -5/Factory | Evolved 4 slots: Power x1, Propulsion x1, Utility x2 7820 | -5/Factory | Discovered new exit (range 4) 7824 | -5/Factory | Identified exit to Upper Caves 8944 | -5/Factory | Entered Upper Caves 8971 | -5/Upper Caves | Entered an active Warlord outpost 8981 | -5/Upper Caves | Learned Extension stockpile data 9323 | -5/Upper Caves | Discovered new exit (range 6) 9328 | -5/Upper Caves | Identified exit to Upper Caves 9484 | -5/Upper Caves | Entered another Upper Caves area 9497 | -5/Upper Caves | Discovered new exit (range 4) 9499 | -5/Upper Caves | Identified exit to Factory 9517 | -5/Upper Caves | Learned location of 1 exit from Factory 9547 | -5/Upper Caves | Learned location of 1 exit from Factory 10207 | -5/Upper Caves | Discovered new exit (range 14) 10314 | -5/Upper Caves | Identified exit to Warlord 10316 | -5/Upper Caves | Entered Warlord 10455 | -5/Warlord | Learned Research security intel 10456 | -5/Warlord | Learned 4 Access zone layouts 10457 | -5/Warlord | Learned location of Command (-1) 10716 | -5/Warlord | Warlord's base attacked by MAIN.C 10788 | -5/Warlord | Met EX-DEC 10792 | -5/Warlord | Found Prototype Energy Gun 10792 | -5/Warlord | Identified Vortex Rifle 10801 | -5/Warlord | Found Vortex Rifle 10937 | -5/Warlord | Build established: Commander-Construct 11018 | -5/Warlord | Lost 4 allies 11066 | -5/Warlord | Warlord forces counterattacked 11090 | -5/Warlord | Met Warlord 11292 | -5/Warlord | Build established: Construct 11391 | -5/Warlord | Warlord base infiltrated, sounded retreat 11392 | -5/Warlord | Spotted Striker 11432 | -5/Warlord | Spotted Striker 11587 | -5/Warlord | Spotted Executioner 11606 | -5/Warlord | Spotted Striker 11646 | -5/Warlord | Discovered new exit (range 15) 11670 | -5/Warlord | Identified exit to Proximity Caves 11706 | -5/Warlord | Entered Proximity Caves 11706 | -4/Proximity Caves | Accompanied by 2 allies 11709 | -4/Proximity Caves | Spotter reported a threat 11709 | -4/Proximity Caves | Spotter reported a threat 11925 | -4/Proximity Caves | Spotter reported a threat 12180 | -4/Proximity Caves | Discovered exit to Factory (range 11) 12259 | -4/Proximity Caves | Entered Factory 12259 | -4/Factory | Accompanied by 2 allies 12259 | -4/Factory | Evolved 2 slots: Propulsion x1, Utility x1 12260 | -4/Factory | Identified exit to Upper Caves 12260 | -4/Factory | Identified exit to Research 13173 | -4/Factory | Discovered exit to Research (range 11) 13259 | -4/Factory | First assault squad dispatched 13460 | -4/Factory | Entered Upper Caves 13518 | -4/Upper Caves | Encountered a Warlord checkpoint 13747 | -4/Upper Caves | Identified exit to Upper Caves 13954 | -4/Upper Caves | Learned Research security intel 14017 | -4/Upper Caves | Attracted the attention of an 0b10 checkpoint 14020 | -4/Upper Caves | Entered another Upper Caves area 14168 | -4/Upper Caves | Attracted the attention of an 0b10 checkpoint 14312 | -4/Upper Caves | Learned 8 Research zone layouts 14312 | -4/Upper Caves | Learned Factory trap positions 14312 | -4/Upper Caves | Learned Armory emergency access door positions 14312 | -4/Upper Caves | Learned Factory stockpile data 14426 | -4/Upper Caves | Discovered new exit (range 11) 14427 | -4/Upper Caves | Encountered a Warlord checkpoint 14436 | -4/Upper Caves | Identified exit to Zhirov 14605 | -4/Upper Caves | Entered Zhirov 14605 | -4/Zhirov | Discovered new exit (range 3) 14625 | -4/Zhirov | Met Zhirov 14650 | -4/Zhirov | Learned location of Quarantine (-3) 14650 | -4/Zhirov | Learned location of Testing (-2) 14655 | -4/Zhirov | Zhirov requested help retrieving the SGEMP Prototype 14673 | -4/Zhirov | Found Alien Artifact 14673 | -4/Zhirov | Identified Integrated Dissipator 14673 | -4/Zhirov | Installed Integrated Dissipator, increased core heat dissipation (+20) 14689 | -4/Zhirov | Found Alien Artifact 14983 | -4/Zhirov | Identified exit to Proximity Caves 14987 | -4/Zhirov | Entered Proximity Caves 14994 | -3/Proximity Caves | Spotter reported a threat 15163 | -3/Proximity Caves | Spotter reported a threat 15447 | -3/Proximity Caves | Discovered exit to Research (range 15) 15547 | -3/Proximity Caves | System corruption reached 10% 15549 | -3/Proximity Caves | Entered Research 15549 | -3/Research | Evolved 2 slots: Power x1, Weapon x1 15550 | -3/Research | Identified exit to Armory 15551 | -3/Research | Identified exit to Research 15585 | -3/Research | Discovered new exit (range 6) 15588 | -3/Research | Identified exit to Quarantine 15617 | -3/Research | Found Prototype Processor 15617 | -3/Research | Identified Spectral Analyzer 16375 | -3/Research | Found Prototype Launcher 16402 | -3/Research | Identified Tactical Quantum Warhead 16475 | -3/Research | Found Prototype Processor 16515 | -3/Research | Identified Exp. Target Analyzer 16605 | -3/Research | Found Quantum Capacitor 16615 | -3/Research | Discovered exit to Research (range 18) 16709 | -3/Research | Cargo convoy interrupted 16888 | -3/Research | Discovered exit to Quarantine (range 8) 16955 | -3/Research | Spotted B-86 Titan 17138 | -3/Research | Found Corrupted Prototype Processor 17141 | -3/Research | Identified Exp. Core Analyzer 17365 | -3/Research | Found Fusion Bomb Launcher 17406 | -3/Research | Entered Quarantine 17442 | -3/Quarantine | Identified Transdimensional Reconstructor 17487 | -3/Quarantine | Found Alien Artifact 17720 | -3/Quarantine | Found Alien Artifact 17720 | -3/Quarantine | Identified Dimensional Node Initializer 17720 | -3/Quarantine | Initialized slip node 17727 | -3/Quarantine | Found Alien Artifact 17727 | -3/Quarantine | Identified Hpw. Transdimensional Reconstructor 17727 | -3/Quarantine | Warped through subspace to slip node 17729 | -3/Quarantine | Found Dimensional Node Initializer 17729 | -3/Quarantine | Initialized slip node 17731 | -3/Quarantine | Found Dimensional Node Initializer 17734 | -3/Quarantine | Found Transdimensional Reconstructor 17734 | -3/Quarantine | Warped through subspace to slip node 17736 | -3/Quarantine | Found Transdimensional Reconstructor 17736 | -3/Quarantine | Warped through subspace to slip node 17739 | -3/Quarantine | Found Hpw. Transdimensional Reconstructor 17739 | -3/Quarantine | Warped through subspace to slip node 17804 | -3/Quarantine | Discovered exit to Research (range 14) 18119 | -3/Quarantine | Cryocooling Duct disabled 18134 | -3/Quarantine | Ambient heat levels rising (+20) 18134 | -3/Quarantine | Non-combat units ordered to evacuate 18234 | -3/Quarantine | Spotted Fortress 18254 | -3/Quarantine | Discovered new exit (range 5) 18254 | -3/Quarantine | Discovered new exit (range 6) 18255 | -3/Quarantine | Identified exit to Protoforge 18313 | -3/Quarantine | Entered Protoforge 18324 | -3/Protoforge | Spotted Hotshot 18334 | -3/Protoforge | Spotted Hotshot 18335 | -3/Protoforge | Spotted Hotshot 18376 | -3/Protoforge | Discovered exit to Research (range 6) 18394 | -3/Protoforge | Initialized slip node 18432 | -3/Protoforge | Spotted Hotshot 18432 | -3/Protoforge | Spotted Hotshot 18465 | -3/Protoforge | Spotted Hotshot 18566 | -3/Protoforge | Superfortress began startup sequence 18645 | -3/Protoforge | Spotted Hotshot 18646 | -3/Protoforge | Spotted Hotshot 18706 | -3/Protoforge | Spotted Hotshot 19104 | -3/Protoforge | Spotted Hotshot 19303 | -3/Protoforge | Found Prototype Device 19329 | -3/Protoforge | Identified Cep. Recoil Nullifier 19332 | -3/Protoforge | Found Prototype Launcher 19344 | -3/Protoforge | Identified Cep. Concussive Dispersal Blaster 19377 | -3/Protoforge | System corruption reached 10% 19445 | -3/Protoforge | Spotted Hotshot 19445 | -3/Protoforge | Spotted Hotshot 19445 | -3/Protoforge | Spotted Hotshot 19446 | -3/Protoforge | Spotted Hotshot 19515 | -3/Protoforge | Forge Plexus network access discovered 19550 | -3/Protoforge | Destroyed Hotshot 19573 | -3/Protoforge | Spotted Immortal 19584 | -3/Protoforge | Destroyed Hotshot 19586 | -3/Protoforge | Destroyed Hotshot 19588 | -3/Protoforge | Destroyed Hotshot 19602 | -3/Protoforge | Found Crosscalibrator 19607 | -3/Protoforge | Spotted Decapitator 19607 | -3/Protoforge | Spotted Decapitator 19607 | -3/Protoforge | Spotted Decapitator 19607 | -3/Protoforge | Spotted Decapitator 19624 | -3/Protoforge | Destroyed Immortal 19679 | -3/Protoforge | Destroyed Decapitator 19702 | -3/Protoforge | Found Exp. Terror Saw 19704 | -3/Protoforge | Found Exp. Terror Saw 19758 | -3/Protoforge | Found Cep. NT7 Matterbank 19760 | -3/Protoforge | Found Cep. Antigrav Storage Unit 19764 | -3/Protoforge | Found Cep. Chromion Battery 19766 | -3/Protoforge | Found Cep. NT7 Matterbank 19769 | -3/Protoforge | Found Cep. Matter Streamer 19839 | -3/Protoforge | Found Faulty Cep. Zero-point Core 19840 | -3/Protoforge | Found Cep. Zero-point Core 19850 | -3/Protoforge | Found Faulty Cep. Zero-point Core 19970 | -3/Protoforge | Found Cep. Tiamat Rocket Array 19981 | -3/Protoforge | Spotted Decapitator 19981 | -3/Protoforge | Spotted Decapitator 19981 | -3/Protoforge | Spotted Decapitator 19981 | -3/Protoforge | Spotted V209-x 20021 | -3/Protoforge | Destroyed V209-x 20031 | -3/Protoforge | Scanned by Researcher 20050 | -3/Protoforge | Found Cep. Weapon Articulator 20053 | -3/Protoforge | Found Cep. Weapon Articulator 20088 | -3/Protoforge | Destroyed Decapitator 20117 | -3/Protoforge | Spotted Decapitator 20117 | -3/Protoforge | Spotted Decapitator 20117 | -3/Protoforge | Spotted Decapitator 20125 | -3/Protoforge | Destroyed Decapitator 20127 | -3/Protoforge | Destroyed Decapitator 20131 | -3/Protoforge | Destroyed Decapitator 20165 | -3/Protoforge | Found Cep. Antimissile System 20169 | -3/Protoforge | Found Prototype Device 20175 | -3/Protoforge | Identified Exp. Remote Shield 20201 | -3/Protoforge | Spotted Immortal 20201 | -3/Protoforge | Spotted Immortal 20201 | -3/Protoforge | Spotted V089-x 20223 | -3/Protoforge | Spotted V096-k 20313 | -3/Protoforge | First assault squad dispatched 20334 | -3/Protoforge | Spotted Decapitator 20334 | -3/Protoforge | Spotted Decapitator 20335 | -3/Protoforge | Spotted Decapitator 20350 | -3/Protoforge | Found Exp. Jetlance 20498 | -3/Protoforge | Destroyed V096-k 20521 | -3/Protoforge | Destroyed Immortal 20548 | -3/Protoforge | Destroyed Immortal 20569 | -3/Protoforge | Destroyed 9 combat bots 20601 | -3/Protoforge | Spotted Decapitator 20605 | -3/Protoforge | Core integrity fell below 50% 20605 | -3/Protoforge | Destroyed Decapitator 20607 | -3/Protoforge | Destroyed Decapitator 20612 | -3/Protoforge | Destroyed Decapitator 20614 | -3/Protoforge | Destroyed Decapitator 20712 | -3/Protoforge | System corruption reached 30% 20957 | -3/Protoforge | Found Cep. Zero-point Core 20958 | -3/Protoforge | Found Cep. Gyrokinetic System 20960 | -3/Protoforge | Found Cep. Gyrokinetic System 21838 | -3/Protoforge | Destroyed 8 combat bots 21857 | -3/Protoforge | Spotted AP7-3 21866 | -3/Protoforge | Spotted AP7-3 21897 | -3/Protoforge | Destroyed AP7-3 21911 | -3/Protoforge | Destroyed AP7-3 21934 | -3/Protoforge | Found Cep. Thermoelectric Network 21937 | -3/Protoforge | Found Cep. Cloak Mesh 21939 | -3/Protoforge | Found Cep. Thermoelectric Network 21940 | -3/Protoforge | Found Faulty Cep. Blasthammer 22126 | -3/Protoforge | Found Faulty Cep. XC Strikerail 22222 | -3/Protoforge | Found Prototype Device 22240 | -3/Protoforge | Destroyed 9 combat bots 22360 | -3/Protoforge | High security lockdown imminent 22360 | -3/Protoforge | Destroyed Decapitator 22364 | -3/Protoforge | Destroyed Decapitator 22395 | -3/Protoforge | Found Faulty Mni. Quantum Capacitor 22399 | -3/Protoforge | Found Faulty Mni. Quantum Capacitor 22440 | -3/Protoforge | High security lockdown engaged 22529 | -3/Protoforge | Identified Exp. Focal Shield 22532 | -3/Protoforge | Identified Subatomic Replicator 22532 | -3/Protoforge | Used Subatomic Replicator to replicate Exp. Remote Shield 22536 | -3/Protoforge | Destroyed 14 combat bots 22567 | -3/Protoforge | Found Faulty Exp. Kinecellerator 22577 | -3/Protoforge | Found Faulty Exp. Kinecellerator 22633 | -3/Protoforge | Destroyed 15 combat bots 22683 | -3/Protoforge | Destroyed Investigator 22687 | -3/Protoforge | Spotted Striker 22700 | -3/Protoforge | Destroyed Striker 22762 | -3/Protoforge | Lost 3 parts (3u) 22778 | -3/Protoforge | Destroyed 21 combat bots 22805 | -3/Protoforge | Spotted Striker 22805 | -3/Protoforge | Spotted Executioner 22822 | -3/Protoforge | Destroyed Striker 22846 | -3/Protoforge | Warped through subspace to slip node 22846 | -3/Protoforge | Spotted Hotshot 22847 | -3/Protoforge | Core integrity fell below 20% 22855 | -3/Protoforge | Spotted Hotshot 22856 | -3/Protoforge | Entered Research 22856 | -2/Research | Warlord forces began assault on 0b10 22856 | -2/Research | Evolved 2 slots: Utility x2 22856 | -2/Research | Self-destructed Last Messages --------------- 22842_ I-47 Archangel destroyed. 22843_ C-30 ARC bursts open, deploying its payload. 22843_ H-77 Assassin unfolds itself. 22843_ P-80 Master unfolds itself. 22846_ Penetrated by Slug. 22846_ Slug penetrates Reinforced Barrier. 22846_ Warped through subspace, drawn to slip node. 22846_ Dimensional Slip Node implodes. 22847_ The unstable cave ceiling collapses. 22850_ Hotshot activates shielding mode. 22851_ The unstable cave ceiling collapses. 22852_ Prc. Zero Strikerail Construct/C destroyed. 22852_ Prc. Zero Strikerail Construct/C core remains intact and functional. 22853_ The unstable cave ceiling collapses. 22854_ Penetrated by Slug. 22856_ Kicked Y-72 Warden out of the way. PARAMETERS=UTILITY+2 LOCATION=RESEARCH GOAL=ESCAPE Map ----- +----------------------------------------------------+ | ?????????????????????????????????????????????????? | | ?????????????????????????????????????????????????? | | ?????????????????????????????????????????????????? | | ?????????????????????????????????????????????????? | | ?????????????????????????????????????????????????? | | ?????????????????????????????????????????????????? | | ?????????????????????????????????????????????????? | | ?????????????????????????????????????????????????? | | ?????????????????????????????????????????????????? | | ?????????????????????????????????????????????????? | | ?????????????????????????????????????????????????? | | ?????????????????????????????????????????????????? | | ?????????????????????????????????????????????????? | | ?????????????????????????????????????????????????? | | ?????????????????????????????????????????????????? | | ?????????????????????????????????????????????????? | | ?????????????????????????????????????????????????? | | ?????????????????????????????????????????????????? | | ?????????????????????????????????????????????????? | | ?????????????????????????????????????????????????? | | ?????????????????????????????????????????????????? | | ?????????????????????????????????????????????????? | | ???????????????????????######????????????????????? | | ???????????????????????# #????????????????????? | | ???????????????????????# #????????????????????? | | ???????????????????????# @ #????????????????????? | | ???????????????????????+ +????????????????????? | | ???????????????????????# #????????????????????? | | ???????????????????????# #????????????????????? | | ???????????????????????# #????????????????????? | | ???????????????????????# #????????????????????? | | ???????????????????????# #????????????????????? | | ???????????????????????# #????????????????????? | | ???????????????????????+ #????????????????????? | | ???????????????????????# #????????????????????? | | ???????????????????????# #????????????????????? | | ???????????????????????# #????????????????????? | | ???????????????????????# #????????????????????? | | ???????????????????????# #????????????????????? | | ???????????????????????# #????????????????????? | | ???????????????????????# #????????????????????? | | ???????????????????????# #????????????????????? | | ???????????????????????# #????????????????????? | | ???????????????????????# #????????????????????? | | ???????????????????????? #????????????????????? | | ???????????????????????? #????????????????????? | | ???????????????????????? ?????????????????????? | | ???????????????????????? ?????????????????????? | | ???????????????????????? ??????????????????????? | | ?????????????????????????????????????????????????? | +----------------------------------------------------+ Best States ------------- Heat Dissipation 104 Energy Generation 73 Energy Capacity 975 Matter Stores 300 Matter Capacity 300 Sight Range 24 Robot Scan Range 16 Terrain Scan Range 14 Terrain Scan Density 10 Jamming Range 14 Additional Mass Support 6 Corruption Block 20 Armor Coverage 225 Resistance: KI 30 Resistance: TH 25 Phase Shifting 10 Evasion (%) 78 Targeting Accuracy 30 Core Analysis 6 Recoil Reduction 5 Kinecelleration 66 Item Schematics ----------------- Assault Drone Bay | -4/Zhirov | Free Exp. Heat Sink | -4/Zhirov | Free Exp. Optical Array | -4/Zhirov | Free Imp. Arc Thrower | -4/Zhirov | Free Adv. Remote Shield | -3/Protoforge | Archive Cld. Plasma Rifle | -3/Protoforge | Archive Adv. EM Shield | -3/Protoforge | Archive Tesla Bomb Launcher | -3/Protoforge | Archive Molecular Scythe | -3/Protoforge | Archive Hvy. Antimatter Reactor | -3/Protoforge | Archive Robot Schematics ------------------ S-43 Plague | -3/Protoforge | Archive K-01 Serf | -3/Protoforge | Archive Fabricated ------------ Nothing Repaired ---------- Lgt. Treads | 34% | -8/Materials Hrd. Medium Armor Plating | 40% | -8/Materials Alien Tech Used ----------------- Integrated Dissipator Dimensional Node Initializer High-powered Transdimensional Reconstructor Transdimensional Reconstructor Subatomic Replicator Achievements -------------- None Challenges ------------ None Game ------ Seed ExperimentalWardroneClaw Manual? 0 Play Time 03:19:44 Cumulative 1537.1 hours Start 2025.06.03 @ 22:58:18 End 2025.06.04 @ 14:23:23 Sessions 3 Manual Loads 0 Difficulty Rogue Special Mode None Game No. 1094 Rogue 1054 Adventurer 40 Explorer 0 Win Type - Total 194 Types 83/9/74/2/1/4/16/2/1/2 Lore% 96 Gallery% 97 Achievement% 88 Wizard Run 0 Options --------- Layout 0 ASCII 0 Keyboard 0 Movement Numpad Keybinds 0 Fullscreen 0 Font 20/Terminus Map View 76x50 Zoom Use 0% Tactical HUD 1 Map Filters NONE Filters NONE Steam 1 RUN: 2b798416-30bb-4269-a3d0-511f2578ba15